[Event "MČR juniorů a juniorek v rapid šachu 2024"]
[Site "Hotel Fit Fun, Harrachov, Czech Republic"]
[Date "2024.09.21"]
[Round "3.21"]
[White "Housa Vojtech"]
[Black "Siles Jan"]
[Result "1-0"]
[TimeControl "20+5"]
[WhiteFideId "23736364"]
[BlackFideId "23715405"]
[WhiteElo "1691"]
[BlackElo "1873"]

1. e4 {[%clk 00:20:07]} c5 {[%clk 00:20:09]} {[%emt 00:00:01]} 2. c3 {[%clk
00:20:11]} {[%emt 00:00:02]} d5 {[%clk 00:20:10]} {[%emt 00:00:04]} 3. exd5
{[%clk 00:20:13]} {[%emt 00:00:03]} Qxd5 {[%clk 00:20:05]} {[%emt 00:00:10]} 4.
Nf3 {[%clk 00:20:17]} Nf6 {[%clk 00:19:41]} {[%emt 00:00:31]} 5. Na3 {[%clk
00:20:03]} {[%emt 00:00:19]} Bg4 {[%clk 00:18:47]} {[%emt 00:00:58]} 6. Be2
{[%clk 00:20:07]} {[%emt 00:00:01]} a6 {[%clk 00:18:11]} {[%emt 00:00:42]} 7.
O-O {[%clk 00:19:54]} {[%emt 00:00:18]} Nc6 {[%clk 00:17:51]} {[%emt 00:00:24]}
8. Nc2 {[%clk 00:19:53]} {[%emt 00:00:06]} Qd7 {[%clk 00:16:58]} {[%emt
00:00:59]} 9. d4 {[%clk 00:19:20]} {[%emt 00:00:37]} e6 {[%clk 00:15:58]}
{[%emt 00:01:06]} 10. Bf4 {[%clk 00:18:37]} {[%emt 00:00:48]} Bd6 {[%clk
00:13:37]} {[%emt 00:02:26]} 11. Bxd6 {[%clk 00:18:12]} {[%emt 00:00:30]} Qxd6
{[%clk 00:13:41]} {[%emt 00:00:01]} 12. dxc5 {[%clk 00:17:43]} {[%emt
00:00:34]} Qxc5 {[%clk 00:13:04]} {[%emt 00:00:41]} 13. Ne3 {[%clk 00:17:14]}
{[%emt 00:00:33]} Bxf3 {[%clk 00:11:38]} {[%emt 00:01:32]} 14. Bxf3 {[%clk
00:17:15]} {[%emt 00:00:04]} O-O {[%clk 00:11:40]} {[%emt 00:00:02]} 15. Qb3
{[%clk 00:16:46]} {[%emt 00:00:34]} Rab8 {[%clk 00:09:19]} {[%emt 00:02:26]} 16.
Rad1 {[%clk 00:16:31]} {[%emt 00:00:20]} Ne5 {[%clk 00:08:42]} {[%emt
00:00:42]} 17. Be2 {[%clk 00:16:11]} {[%emt 00:00:24]} b5 {[%clk 00:08:18]}
{[%emt 00:00:30]} 18. Nc2 {[%clk 00:15:03]} {[%emt 00:01:12]} Rfd8 {[%clk
00:07:39]} {[%emt 00:00:45]} 19. Nd4 {[%clk 00:14:19]} {[%emt 00:00:49]} Nd5
{[%clk 00:05:21]} {[%emt 00:02:22]} 20. a3 {[%clk 00:13:42]} {[%emt 00:00:42]}
Nf4 {[%clk 00:04:37]} {[%emt 00:00:49]} 21. Rfe1 {[%clk 00:13:02]} {[%emt
00:00:46]} Rd7 {[%clk 00:03:47]} {[%emt 00:00:56]} 22. g3 {[%clk 00:12:42]}
{[%emt 00:00:24]} Nh3+ {[%clk 00:03:26]} {[%emt 00:00:26]} 23. Kg2 {[%clk
00:12:16]} {[%emt 00:00:31]} Ng5 {[%clk 00:02:34]} {[%emt 00:00:57]} 24. f4
{[%clk 00:12:04]} {[%emt 00:00:17]} Rxd4 {[%clk 00:02:24]} {[%emt 00:00:15]} 25.
cxd4 {[%clk 00:11:14]} {[%emt 00:00:55]} Qc6+ {[%clk 00:02:10]} {[%emt
00:00:20]} 26. d5 {[%clk 00:11:14]} {[%emt 00:00:05]} exd5 {[%clk 00:01:58]}
{[%emt 00:00:16]} 27. Qxd5 {[%clk 00:11:08]} {[%emt 00:00:10]} Qxd5+ {[%clk
00:00:29]} {[%emt 00:01:35]} 28. Rxd5 {[%clk 00:11:10]} {[%emt 00:00:03]} Nc4
{[%clk 00:00:33]} {[%emt 00:00:01]} 29. Bxc4 {[%clk 00:10:37]} {[%emt
00:00:38]} bxc4 {[%clk 00:00:31]} {[%emt 00:00:06]} 30. Rxg5 {[%clk 00:10:30]}
{[%emt 00:00:13]} Rxb2+ {[%clk 00:00:35]} {[%emt 00:00:01]} 31. Kg1 {[%clk
00:10:33]} {[%emt 00:00:02]} h6 {[%clk 00:00:32]} {[%emt 00:00:08]} 32. Rc5
{[%clk 00:10:32]} {[%emt 00:00:06]} Rb3 {[%clk 00:00:24]} {[%emt 00:00:12]} 33.
a4 {[%clk 00:10:15]} {[%emt 00:00:23]} 1-0



[ePGN "0.1;DGT LiveChess/2.2.6"]

[Event "MČR juniorů a juniorek v rapid šachu 2024"]
[Site "Hotel Fit Fun, Harrachov, Czech Republic"]
[Date "2024.09.21"]
[Round "3.22"]
[White "Stary Simon"]
[Black "Marxova Sarka"]
[Result "1-0"]
[TimeControl "20+5"]
[WhiteFideId "23734353"]
[BlackFideId "23701862"]
[WhiteElo "1866"]
[BlackElo "1684"]

1. e4 {[%clk 00:20:08]} {[%emt 00:05:36]} c5 {[%clk 00:20:08]} {[%emt
00:00:02]} 2. Nf3 {[%clk 00:20:12]} {[%emt 00:00:02]} d6 {[%clk 00:20:12]}
{[%emt 00:00:04]} 3. d4 {[%clk 00:20:16]} cxd4 {[%clk 00:20:15]} {[%emt
00:00:01]} 4. Nxd4 {[%clk 00:20:19]} {[%emt 00:00:01]} Nf6 {[%clk 00:20:18]}
{[%emt 00:00:02]} 5. Nc3 {[%clk 00:20:23]} {[%emt 00:00:02]} a6 {[%clk
00:20:21]} {[%emt 00:00:02]} 6. h3 {[%clk 00:20:26]} {[%emt 00:00:01]} Nc6
{[%clk 00:20:18]} {[%emt 00:00:08]} 7. g4 {[%clk 00:20:17]} {[%emt 00:00:14]}
e6 {[%clk 00:20:11]} {[%emt 00:00:13]} 8. g5 {[%clk 00:20:07]} {[%emt
00:00:14]} Nd7 {[%clk 00:20:06]} {[%emt 00:00:10]} 9. Be3 {[%clk 00:20:04]}
{[%emt 00:00:07]} Be7 {[%clk 00:20:04]} {[%emt 00:00:07]} 10. h4 {[%clk
00:20:07]} {[%emt 00:00:02]} Rb8 {[%clk 00:18:30]} {[%emt 00:01:40]} 11. Qd2
{[%clk 00:19:51]} {[%emt 00:00:21]} Nde5 {[%clk 00:18:10]} {[%emt 00:00:25]} 12.
Be2 {[%clk 00:19:06]} {[%emt 00:00:50]} Qc7 {[%clk 00:17:45]} {[%emt 00:00:30]}
13. f4 {[%clk 00:18:31]} {[%emt 00:00:40]} Nd7 {[%clk 00:17:39]} {[%emt
00:00:11]} 14. O-O-O {[%clk 00:18:26]} {[%emt 00:00:10]} b5 {[%clk 00:17:16]}
{[%emt 00:00:27]} 15. f5 {[%clk 00:16:36]} {[%emt 00:01:56]} Nxd4 {[%clk
00:16:09]} {[%emt 00:01:12]} 16. Bxd4 {[%clk 00:15:55]} {[%emt 00:00:46]} e5
{[%clk 00:16:12]} {[%emt 00:00:02]} 17. Nd5 {[%clk 00:15:49]} {[%emt 00:00:11]}
Qc6 {[%clk 00:15:36]} {[%emt 00:00:41]} 18. Be3 {[%clk 00:15:26]} {[%emt
00:00:27]} Nc5 {[%clk 00:15:16]} {[%emt 00:00:25]} 19. Bf3 {[%clk 00:14:24]}
{[%emt 00:01:08]} a5 {[%clk 00:13:46]} {[%emt 00:01:35]} 20. Qxa5 {[%clk
00:12:35]} {[%emt 00:01:54]} Bd8 {[%clk 00:13:19]} {[%emt 00:00:32]} 21. Qd2
{[%clk 00:12:20]} {[%emt 00:00:20]} Ra8 {[%clk 00:13:16]} {[%emt 00:00:09]} 22.
Nb4 {[%clk 00:12:06]} {[%emt 00:00:18]} Nb3+ {[%clk 00:12:57]} {[%emt
00:00:24]} 23. Kb1 {[%clk 00:11:56]} {[%emt 00:00:16]} Nxd2+ {[%clk 00:12:59]}
{[%emt 00:00:02]} 24. Rxd2 {[%clk 00:12:00]} Qc4 {[%clk 00:11:40]} {[%emt
00:01:23]} 25. a3 {[%clk 00:11:43]} {[%emt 00:00:23]} Ba5 {[%clk 00:10:59]}
{[%emt 00:00:46]} 26. c3 {[%clk 00:10:47]} {[%emt 00:01:01]} Bxb4 {[%clk
00:10:34]} {[%emt 00:00:30]} 27. cxb4 {[%clk 00:10:52]} {[%emt 00:00:01]} Qc7
{[%clk 00:08:22]} {[%emt 00:02:16]} 28. Rc1 {[%clk 00:10:49]} {[%emt 00:00:08]}
Qe7 {[%clk 00:07:43]} {[%emt 00:00:44]} 29. Bb6 {[%clk 00:09:27]} {[%emt
00:01:27]} O-O {[%clk 00:06:28]} {[%emt 00:01:21]} 30. Bc7 {[%clk 00:09:30]}
{[%emt 00:00:02]} Rd8 {[%clk 00:05:36]} {[%emt 00:00:56]} 31. Bxd8 {[%clk
00:08:32]} {[%emt 00:01:03]} Qxd8 {[%clk 00:05:39]} {[%emt 00:00:02]} 32. Rc6
{[%clk 00:08:33]} {[%emt 00:00:04]} Ra6 {[%clk 00:05:35]} {[%emt 00:00:09]} 33.
Rdxd6 {[%clk 00:08:30]} {[%emt 00:00:08]} Qe8 {[%clk 00:05:01]} {[%emt
00:00:39]} 34. Rxa6 {[%clk 00:08:32]} {[%emt 00:00:03]} Bxa6 {[%clk 00:05:05]}
{[%emt 00:00:02]} 35. Rxa6 {[%emt 00:00:03]} Qc8 {[%clk 00:05:01]} {[%emt
00:00:06]} 36. Rb6 {[%clk 00:08:14]} {[%emt 00:00:26]} Qe8 {[%clk 00:04:59]}
{[%emt 00:00:08]} 37. Be2 {[%clk 00:08:05]} {[%emt 00:00:15]} f6 {[%clk
00:04:37]} {[%emt 00:00:26]} 38. Bxb5 {[%clk 00:07:48]} {[%emt 00:00:22]} Qd8
{[%clk 00:04:28]} {[%emt 00:00:14]} 39. Bc4+ {[%clk 00:07:43]} {[%emt
00:00:10]} Kf8 {[%clk 00:04:24]} {[%emt 00:00:08]} 40. Re6 {[%clk 00:06:36]}
{[%emt 00:01:12]} fxg5 {[%clk 00:04:18]} {[%emt 00:00:12]} 41. hxg5 {[%clk
00:05:54]} {[%emt 00:00:47]} Qxg5 {[%clk 00:04:09]} {[%emt 00:00:14]} 42. b5
{[%clk 00:05:21]} {[%emt 00:00:39]} Qg1+ {[%clk 00:04:04]} {[%emt 00:00:09]} 43.
Ka2 {[%clk 00:05:24]} {[%emt 00:00:02]} Qc5 {[%clk 00:04:07]} {[%emt 00:00:02]}
44. Rc6 {[%clk 00:05:11]} {[%emt 00:00:18]} Qa7 {[%clk 00:03:49]} {[%emt
00:00:23]} 45. b6 {[%clk 00:05:06]} {[%emt 00:00:11]} Qb8 {[%clk 00:03:37]}
{[%emt 00:00:15]} 46. Bd5 {[%clk 00:04:44]} {[%emt 00:00:28]} g5 {[%clk
00:02:53]} {[%emt 00:00:49]} 47. fxg6 {[%clk 00:04:45]} {[%emt 00:00:04]} hxg6
{[%clk 00:02:56]} {[%emt 00:00:02]} 48. b7 {[%clk 00:04:43]} {[%emt 00:00:07]}
Kg7 {[%clk 00:02:32]} {[%emt 00:00:28]} 49. Rc8 {[%clk 00:04:41]} {[%emt
00:00:08]} Qd6 {[%clk 00:02:14]} {[%emt 00:00:23]} 50. b8=Q {[%clk 00:04:41]}
{[%emt 00:00:05]} Qf6 {[%clk 00:01:47]} {[%emt 00:00:32]} 51. Rg8+ {[%clk
00:04:42]} {[%emt 00:00:04]} Kh6 {[%clk 00:01:51]} {[%emt 00:00:02]} 52. Qb3
{[%clk 00:04:40]} {[%emt 00:00:06]} Qh4 {[%clk 00:01:43]} {[%emt 00:00:12]} 53.
Rh8+ {[%clk 00:04:42]} {[%emt 00:00:04]} 1-0



[ePGN "0.1;DGT LiveChess/2.2.6"]

[Event "MČR juniorů a juniorek v rapid šachu 2024"]
[Site "Hotel Fit Fun, Harrachov, Czech Republic"]
[Date "2024.09.21"]
[Round "3.23"]
[White "Krizan Jakub"]
[Black "Martinkovic Adam"]
[Result "0-1"]
[TimeControl "20+5"]
[WhiteFideId "23717017"]
[BlackFideId "23728019"]
[WhiteElo "1000"]
[BlackElo "1841"]

1. e4 {[%clk 00:20:08]} c6 {[%clk 00:20:09]} {[%emt 00:00:01]} 2. d4 {[%clk
00:20:10]} {[%emt 00:00:03]} d5 {[%clk 00:20:14]} 3. exd5 cxd5 {[%clk
00:20:17]} 4. Nf3 {[%clk 00:20:10]} {[%emt 00:00:07]} Nf6 {[%clk 00:20:15]}
{[%emt 00:00:08]} 5. Bb5+ {[%clk 00:19:52]} {[%emt 00:00:24]} Bd7 {[%clk
00:20:05]} {[%emt 00:00:14]} 6. Qe2 {[%clk 00:18:55]} {[%emt 00:01:02]} Nc6
{[%clk 00:19:34]} {[%emt 00:00:36]} 7. Bg5 {[%clk 00:18:31]} {[%emt 00:00:28]}
Ne4 {[%clk 00:18:51]} {[%emt 00:00:49]} 8. Bh4 {[%clk 00:17:27]} {[%emt
00:01:09]} a6 {[%clk 00:16:40]} {[%emt 00:02:17]} 9. Bd3 {[%clk 00:16:30]}
{[%emt 00:01:01]} Bg4 {[%clk 00:14:57]} {[%emt 00:01:47]} 10. c3 {[%clk
00:15:24]} {[%emt 00:01:12]} Nf6 {[%clk 00:13:55]} {[%emt 00:01:08]} 11. O-O
{[%clk 00:15:05]} {[%emt 00:00:24]} e6 {[%clk 00:13:35]} {[%emt 00:00:25]} 12.
Nbd2 {[%clk 00:14:13]} {[%emt 00:00:57]} Be7 {[%clk 00:13:24]} {[%emt
00:00:15]} 13. Qe3 {[%clk 00:13:17]} {[%emt 00:01:02]} b5 {[%clk 00:12:17]}
{[%emt 00:01:12]} 14. Ng5 {[%clk 00:11:45]} {[%emt 00:01:37]} h6 {[%clk
00:11:27]} {[%emt 00:00:55]} 15. Ngf3 {[%clk 00:11:42]} {[%emt 00:00:08]} Bxf3
{[%clk 00:08:43]} {[%emt 00:02:48]} 16. Nxf3 {[%clk 00:11:11]} {[%emt
00:00:36]} Rc8 {[%clk 00:07:29]} {[%emt 00:01:19]} 17. a4 {[%clk 00:10:05]}
{[%emt 00:01:12]} Qb6 {[%clk 00:06:42]} {[%emt 00:00:51]} 18. Qe2 {[%clk
00:09:03]} {[%emt 00:01:07]} Rb8 {[%clk 00:06:00]} {[%emt 00:00:47]} 19. Bg3
{[%clk 00:07:57]} {[%emt 00:01:12]} Rb7 {[%clk 00:05:30]} {[%emt 00:00:35]} 20.
axb5 {[%clk 00:07:05]} {[%emt 00:00:56]} axb5 {[%clk 00:05:25]} {[%emt
00:00:10]} 21. Ra8+ {[%clk 00:06:52]} {[%emt 00:00:19]} Nd8 {[%clk 00:05:16]}
{[%emt 00:00:13]} 22. Rfa1 {[%clk 00:06:24]} {[%emt 00:00:33]} Ne4 {[%clk
00:01:02]} {[%emt 00:04:19]} 23. Bxe4 {[%clk 00:06:00]} {[%emt 00:00:30]} dxe4
{[%clk 00:01:04]} {[%emt 00:00:02]} 24. R1a6 {[%clk 00:05:59]} {[%emt
00:00:06]} exf3 {[%clk 00:01:02]} {[%emt 00:00:07]} 25. Qxf3 {[%clk 00:05:49]}
{[%emt 00:00:16]} O-O {[%clk 00:00:20]} {[%emt 00:00:46]} 26. Rxb6 {[%clk
00:05:48]} {[%emt 00:00:06]} Rxb6 {[%clk 00:01:21]} {[%emt 00:00:59]} 27. Qg4
{[%clk 00:04:32]} {[%emt 00:01:42]} Nc6 {[%clk 00:00:53]} {[%emt 00:00:33]} 28.
Ra1 {[%clk 00:03:44]} {[%emt 00:00:53]} Bf6 {[%clk 00:00:36]} {[%emt 00:00:21]}
29. Bd6 {[%clk 00:03:26]} {[%emt 00:00:23]} Rc8 {[%clk 00:00:24]} {[%emt
00:00:17]} 30. Bc5 {[%clk 00:02:46]} {[%emt 00:00:45]} Rb7 {[%clk 00:00:16]}
{[%emt 00:00:13]} 31. f4 {[%emt 00:00:51]} b4 {[%clk 00:00:16]} {[%emt
00:00:04]} 32. d5 {[%clk 00:01:10]} {[%emt 00:00:56]} Ne7 {[%clk 00:00:08]}
{[%emt 00:00:13]} 33. Bxb4 {[%clk 00:01:04]} {[%emt 00:00:12]} Nxd5 {[%clk
00:00:10]} {[%emt 00:00:03]} 34. Qf3 {[%clk 00:00:49]} {[%emt 00:00:18]} Rbb8
{[%clk 00:00:07]} {[%emt 00:00:10]} 35. Bd6 {[%clk 00:00:35]} {[%emt 00:00:19]}
Ra8 {[%clk 00:00:09]} {[%emt 00:00:03]} 36. Rxa8 {[%clk 00:00:31]} {[%emt
00:00:08]} Rxa8 {[%clk 00:00:12]} {[%emt 00:00:02]} 37. f5 {[%clk 00:00:26]}
{[%emt 00:00:10]} Ra1+ {[%clk 00:00:12]} {[%emt 00:00:05]} 38. Kf2 {[%clk
00:00:27]} {[%emt 00:00:04]} Rb1 {[%clk 00:00:13]} {[%emt 00:00:04]} 39. fxe6
{[%clk 00:00:20]} {[%emt 00:00:12]} Rxb2+ {[%clk 00:00:17]} {[%emt 00:00:01]}
40. Kg3 {[%clk 00:00:17]} {[%emt 00:00:09]} fxe6 {[%clk 00:00:18]} {[%emt
00:00:03]} 41. c4 {[%clk 00:00:13]} {[%emt 00:00:09]} Ne7 {[%clk 00:00:11]}
{[%emt 00:00:12]} 42. Qa8+ {[%clk 00:00:13]} {[%emt 00:00:05]} Kh7 {[%clk
00:00:13]} {[%emt 00:00:03]} 43. Qe4+ {[%clk 00:00:11]} {[%emt 00:00:06]} Nf5+
{[%clk 00:00:16]} {[%emt 00:00:02]} 44. Kf3 {[%clk 00:00:09]} {[%emt 00:00:08]}
Rb3+ {[%clk 00:00:19]} {[%emt 00:00:02]} 45. Kf2 {[%clk 00:00:09]} {[%emt
00:00:05]} Rb2+ {[%clk 00:00:20]} {[%emt 00:00:04]} 46. Kf3 {[%clk 00:00:11]}
{[%emt 00:00:03]} Rb3+ {[%clk 00:00:07]} {[%emt 00:00:18]} 47. Kf2 {[%clk
00:00:15]} Bd4+ {[%clk 00:00:08]} {[%emt 00:00:04]} 48. Ke2 {[%clk 00:00:12]}
{[%emt 00:00:08]} Rb2+ {[%clk 00:00:10]} {[%emt 00:00:03]} 49. Kf3 {[%clk
00:00:15]} {[%emt 00:00:02]} Rf2+ {[%clk 00:00:12]} {[%emt 00:00:02]} 50. Kg4
{[%clk 00:00:13]} {[%emt 00:00:07]} Rxg2+ {[%clk 00:00:11]} {[%emt 00:00:06]}
51. Kh3 {[%clk 00:00:14]} {[%emt 00:00:04]} Rc2 {[%clk 00:00:09]} {[%emt
00:00:08]} 52. Qxe6 {[%clk 00:00:13]} {[%emt 00:00:06]} Nxd6 {[%clk 00:00:08]}
{[%emt 00:00:05]} 53. Qxd6 {[%clk 00:00:13]} {[%emt 00:00:05]} Rc3+ {[%clk
00:00:07]} {[%emt 00:00:07]} 54. Kg4 {[%clk 00:00:14]} {[%emt 00:00:04]} Bf6
{[%clk 00:00:10]} {[%emt 00:00:02]} 55. c5 {[%clk 00:00:11]} {[%emt 00:00:07]}
Rc4+ {[%clk 00:00:13]} {[%emt 00:00:03]} 56. Kf3 {[%clk 00:00:08]} {[%emt
00:00:08]} Rc3+ {[%clk 00:00:15]} {[%emt 00:00:02]} 57. Ke4 {[%clk 00:00:10]}
{[%emt 00:00:04]} Rc4+ {[%clk 00:00:17]} {[%emt 00:00:02]} 58. Kd5 {[%clk
00:00:12]} {[%emt 00:00:03]} Rd4+ 0-1



[ePGN "0.1;DGT LiveChess/2.2.6"]

[Event "MČR juniorů a juniorek v rapid šachu 2024"]
[Site "Hotel Fit Fun, Harrachov, Czech Republic"]
[Date "2024.09.21"]
[Round "3.24"]
[White "Urbansky Stepan"]
[Black "Vyslysel Petr"]
[Result "0-1"]
[TimeControl "20+5"]
[WhiteFideId "23761741"]
[BlackFideId "23730277"]
[WhiteElo "1837"]
[BlackElo "1678"]

1. e4 {[%clk 00:20:08]} {[%emt 00:01:51]} e6 {[%clk 00:20:04]} {[%emt
00:00:08]} 2. d4 {[%clk 00:20:10]} {[%emt 00:00:02]} d5 {[%clk 00:20:08]}
{[%emt 00:00:02]} 3. Nd2 {[%clk 00:20:11]} {[%emt 00:00:02]} dxe4 {[%clk
00:20:12]} {[%emt 00:00:03]} 4. Nxe4 {[%clk 00:20:14]} {[%emt 00:00:02]} Nd7
{[%clk 00:20:15]} {[%emt 00:00:02]} 5. g3 {[%clk 00:20:12]} {[%emt 00:00:06]}
Ngf6 {[%clk 00:20:18]} {[%emt 00:00:03]} 6. Nxf6+ {[%clk 00:20:13]} {[%emt
00:00:03]} Nxf6 {[%clk 00:20:20]} {[%emt 00:00:03]} 7. Bg2 {[%clk 00:20:14]}
{[%emt 00:00:03]} c5 {[%clk 00:20:24]} {[%emt 00:00:03]} 8. Ne2 {[%clk
00:20:10]} {[%emt 00:00:08]} cxd4 {[%clk 00:20:02]} {[%emt 00:00:27]} 9. Qxd4
{[%clk 00:20:11]} {[%emt 00:00:04]} Be7 {[%clk 00:19:54]} {[%emt 00:00:14]} 10.
O-O {[%clk 00:19:51]} {[%emt 00:00:24]} O-O {[%clk 00:19:56]} {[%emt 00:00:03]}
11. a4 {[%clk 00:19:23]} {[%emt 00:00:33]} Nd7 {[%clk 00:18:03]} {[%emt
00:01:58]} 12. Rd1 {[%clk 00:15:37]} {[%emt 00:03:50]} Qc7 {[%clk 00:16:25]}
{[%emt 00:01:44]} 13. Qc3 {[%clk 00:12:28]} {[%emt 00:03:14]} Qxc3 {[%clk
00:14:41]} {[%emt 00:01:49]} 14. Nxc3 {[%clk 00:12:27]} {[%emt 00:00:07]} Nc5
{[%clk 00:14:44]} {[%emt 00:00:02]} 15. a5 {[%clk 00:10:15]} {[%emt 00:02:17]}
a6 {[%clk 00:13:58]} {[%emt 00:00:50]} 16. Bf4 {[%clk 00:07:45]} {[%emt
00:02:35]} Rd8 {[%clk 00:11:52]} {[%emt 00:02:12]} 17. Bc7 {[%clk 00:06:35]}
{[%emt 00:01:14]} Rxd1+ {[%clk 00:11:08]} {[%emt 00:00:50]} 18. Rxd1 {[%clk
00:06:38]} {[%emt 00:00:01]} Kf8 {[%clk 00:11:08]} {[%emt 00:00:05]} 19. Ne4
{[%clk 00:03:33]} {[%emt 00:03:10]} Nd7 {[%clk 00:10:10]} {[%emt 00:01:04]} 20.
Nd6 {[%emt 00:00:25]} Nf6 {[%clk 00:09:41]} {[%emt 00:00:32]} 21. Nxb7 {[%clk
00:03:02]} {[%emt 00:00:17]} Bxb7 {[%clk 00:09:33]} {[%emt 00:00:14]} 22. Bxb7
{[%clk 00:02:07]} {[%emt 00:01:00]} Ra7 {[%clk 00:09:36]} {[%emt 00:00:02]} 23.
Bxa6 {[%clk 00:01:37]} {[%emt 00:00:34]} Rxc7 {[%clk 00:09:39]} {[%emt
00:00:02]} 24. c3 {[%clk 00:01:34]} {[%emt 00:00:08]} Ra7 {[%clk 00:09:42]}
{[%emt 00:00:03]} 25. Bf1 {[%clk 00:01:24]} {[%emt 00:00:14]} Rxa5 {[%clk
00:09:43]} {[%emt 00:00:05]} 26. b4 {[%clk 00:01:26]} {[%emt 00:00:03]} Ra3
{[%clk 00:09:43]} {[%emt 00:00:05]} 27. Rc1 {[%clk 00:01:18]} {[%emt 00:00:13]}
Nd5 {[%clk 00:09:45]} {[%emt 00:00:02]} 28. c4 {[%clk 00:00:56]} {[%emt
00:00:28]} Nxb4 {[%clk 00:09:48]} {[%emt 00:00:02]} 29. c5 {[%clk 00:01:00]}
Nc6 {[%clk 00:09:40]} {[%emt 00:00:14]} 30. Bb5 {[%clk 00:00:59]} {[%emt
00:00:06]} Na7 {[%clk 00:09:32]} {[%emt 00:00:12]} 31. Bd7 {[%clk 00:00:48]}
{[%emt 00:00:16]} Bd8 {[%clk 00:09:24]} {[%emt 00:00:13]} 32. c6 {[%clk
00:00:43]} {[%emt 00:00:10]} Nb5 {[%clk 00:09:17]} {[%emt 00:00:12]} 33. Rb1
{[%clk 00:00:35]} {[%emt 00:00:13]} Nc7 {[%clk 00:09:20]} {[%emt 00:00:03]} 34.
Kg2 {[%clk 00:00:24]} {[%emt 00:00:16]} Ke7 {[%clk 00:09:20]} {[%emt 00:00:05]}
35. Rb4 {[%clk 00:00:17]} {[%emt 00:00:12]} Nd5 {[%clk 00:09:13]} {[%emt
00:00:12]} 36. Rb7 {[%clk 00:00:15]} {[%emt 00:00:07]} Bc7 {[%clk 00:09:13]}
{[%emt 00:00:05]} 0-1



[ePGN "0.1;DGT LiveChess/2.2.6"]